fUSD/lending_fUSD_20241004
["ID","MTS","AMOUNT","RATE_DAILY","PERIOD"]
[339826622,1728045052303,-5885.68,0.00016116,2]
[339826623,1728045052312,-169.13,0.00016289,2]
[339826624,1728045052322,-2500.0,0.000164,2]
[339826625,1728045052331,-150.0,0.00016438,2]
[339826626,1728045052340,-300.0,0.00016438,2]
[339826627,1728045052349,-9145.0,0.00016529,2]
[339826628,1728045052358,-150.0,0.00016871,2]
[339826629,1728045052367,-150.0,0.00016997,2]
[339826630,1728045052376,-808.0,0.00016999,2]
[339826631,1728045052386,-1005.2,0.00016999,2]
[339826632,1728045052395,-150.0,0.00016999,2]
[339826633,1728045052404,-582.743,0.00016999,2]
[339826634,1728045052413,-350.0,0.00017,2]
[339826635,1728045052422,-6858.44458293,0.00017161,2]
[339826636,1728045052433,-150.0,0.00017304,2]
[339826637,1728045052442,-622.72,0.00017344,2]
[339826638,1728045052451,-1613.0,0.00017472,2]
[339826639,1728045052461,-1012.66,0.0001756,2]
[339826640,1728045052470,-600.073507,0.0001764,2]
[339826641,1728045052480,-150.0,0.00017736,2]
[339826642,1728045052491,-303.53,0.000178,7]
[339826643,1728045052502,-150.0,0.00018169,2]
[339826644,1728045052512,-150.0,0.00018601,2]
[339826645,1728045052521,-400.0,0.00019,2]
[339826646,1728045052530,-150.0,0.00019034,2]
[339826647,1728045052540,-892.86912818,0.00019178,2]
[339826648,1728045052549,-1012.66,0.000192,2]
[339826649,1728045052558,-1961.0,0.00019201,2]
[339826650,1728045052568,-6693.46,0.00019339,2]
[339826651,1728045052577,-891.28,0.00019339,2]
[339826652,1728045052587,-150.0,0.00019466,2]
[339826653,1728045052597,-622.72,0.00019608,2]
[339826654,1728045052606,-150.0,0.00019899,2]
[339826655,1728045052615,-372.437,0.00019999,2]
[339826656,1728045052625,-150.0,0.00019999,2]
[339826657,1728045052635,-150.0,0.0002,2]
[339826658,1728045052644,-500.0,0.0002,2]
[339826659,1728045052654,-177.0,0.0002,2]
[339826660,1728045052663,-160.0,0.0002,2]
[339826661,1728045052673,-2000.0,0.0002,2]
[339826662,1728045052682,-200.0,0.0002,2]
[339826663,1728045052692,-1100.499999,0.0002,2]
[339826664,1728045052701,-2000.0,0.0002,2]
[339826665,1728045052710,-200.0,0.0002,2]
[339826666,1728045052720,-2000.0,0.000202,2]
[339826667,1728045052729,-200.0,0.000202,2]
[339826668,1728045052743,-2000.0,0.000202,2]
[339826669,1728045052753,-200.0,0.000202,2]
[339826670,1728045052763,-2533.0,0.00020274,120]
[339826671,1728045052773,-913.21369437,0.00020274,120]
[339826672,1728045052782,-1508.94094134,0.00020274,120]
[339826673,1728045052792,-6858.44458293,0.00020292,2]
[339826674,1728045052805,-150.0,0.00020332,2]
[339826675,1728045052815,-264.73134577,0.00020402,2]
[339826676,1728045052825,-200.0,0.00020402,2]
[339826677,1728045052836,-200.0,0.00020402,2]
[339826678,1728045052846,-1251.57574963,0.000205,2]
[339826679,1728045052855,-174.21,0.00020548,2]
[339826680,1728045052864,-200.0,0.00020606,2]
[339826681,1728045052874,-200.0,0.00020606,2]
[339826682,1728045052884,-150.0,0.00020764,2]
[339826683,1728045052895,-200.0,0.00020812,2]
[339826684,1728045052904,-200.0,0.00020812,2]
[339826685,1728045052914,-1012.66,0.0002084,2]
[339826686,1728045052924,-450.0,0.00021,2]
[339826687,1728045052933,-150.0,0.00021197,2]
[339826688,1728045052943,-345.97836104,0.00021215,2]
[339826689,1728045052953,-150.0,0.00021629,2]
[339826690,1728045052963,-622.72,0.00021872,2]
[339826691,1728045052973,-181.0,0.000219,2]
[339826692,1728045052983,-250.0,0.00021917,2]
[339826693,1728045052997,-407.28,0.00021918,2]
[339826694,1728045053007,-1505.39,0.00021918,2]
[339826695,1728045053018,-333.19241045,0.00022,7]
[339826696,1728045053028,-3235.35679858,0.00022,2]
[339826697,1728045053038,-500.78114636,0.00022,2]
[339826698,1728045053048,-150.0,0.00022062,2]
[339826699,1728045053058,-1000.0,0.00022466,2]
[339826700,1728045053074,-1012.66,0.0002248,2]
[339826701,1728045053095,-150.0,0.00022494,2]
[339826702,1728045053113,-159.92746531,0.00022608,2]
[339826703,1728045053132,-252.94,0.000227,14]
[339826704,1728045053153,-150.0,0.00022927,2]
[339826705,1728045053172,-150.0,0.00022999,2]
[339826706,1728045053191,-500.0,0.00023,2]
[339826707,1728045053206,-496.02266462,0.00023177,2]
[339826708,1728045053223,-150.0,0.0002336,2]
[339826709,1728045053246,-35000.0,0.00023421,2]
[339826710,1728045053263,-35000.0,0.00023423,2]
[339826711,1728045053276,-6858.44458293,0.00023423,2]
[339826712,1728045053295,-6172.73941675,0.00023434,2]
[339826713,1728045053311,-35000.0,0.00023442,2]
[339826714,1728045053329,-150.0,0.00023792,2]
[339826715,1728045053342,-200.73041623,0.00024,5]
[339826716,1728045053357,-1012.66,0.0002412,2]
[339826717,1728045053373,-622.72,0.00024136,2]
[339826718,1728045053389,-150.0,0.00024225,2]
[339826719,1728045053405,-500.0,0.00024657,2]
[339826720,1728045053419,-150.0,0.00024657,2]
[339826721,1728045053435,-11590.2509651,0.00024783,2]
[339826722,1728045053450,-2922.5037677,0.00024783,2]
[339826723,1728045053465,-150.0,0.00024799,7]
[339826724,1728045053479,-175.50142193,0.00024799,7]
[339826725,1728045053499,-337670.07177053,0.000248,4]
[339826726,1728045054496,-6514.83247431,0.000248,4]
[339826727,1728045055066,-380.25182734,0.00010997,2]
[339826728,1728045055086,-262.26325431,0.00010997,2]
[339826729,1728045055096,-1148.0,0.00010999,2]
[339826730,1728045055106,-535.891,0.00013999,2]
[339826731,1728045055115,-685.10372536,0.00024578,2]
[339826732,1728045055125,-1112550.07400441,0.000248,4]
[339826733,1728045055141,-28546.6046542,0.000248,4]
[339826734,1728045055167,-624.88433092,0.000248,4]
[339826735,1728045055183,-5263.00790136,0.000248,4]
[339826736,1728045055194,-5722.24100985,0.000248,4]
[339826737,1728045055988,-934.0,0.00010999,2]
[339826738,1728045056005,-190.64804972,0.00013999,2]
[339826739,1728045056016,-74.86095028,0.00013999,2]
[339826740,1728045056026,-2740.07409849,0.000248,4]
[339826741,1728045056039,-1276.01781302,0.000248,4]
[339826742,1728045056054,-1572.40480384,0.000248,4]
[339826743,1728045161111,150.0,0.00010225,2]
[339826744,1728045638243,-373.63,0.00010346,2]
[339826745,1728045689899,-2398.9074,0.000109,2]
[339826768,1728046231933,-182.58,0.00010959,2]
[339826769,1728046231944,-160.28,0.00010959,2]
[339826770,1728046231953,-150.0,0.00011,2]
[339826771,1728046231962,-995.62,0.00011,2]
[339826772,1728046231971,-1174.891158,0.00011955,2]
[339826774,1728046231981,-559.0,0.00012378,2]
[339826775,1728046231991,-811.0,0.00012378,2]
[339826776,1728046232000,-226.720242,0.000129,2]
[339826777,1728046232042,-3190.6686,0.000129,2]
[339826778,1728046232100,-7212.25033393,0.000129,2]
[339826779,1728046232109,-250.0,0.00013,2]
[339826780,1728046232119,-8115.77292563,0.00013491,2]
[339826781,1728046232129,-876.7930376,0.00013491,2]
[339826782,1728046232138,-167.27,0.00014557,2]
[339826783,1728046232150,-169.38,0.00014934,2]
[339826784,1728046232160,-300.0,0.00015,2]
[339826785,1728046232169,-157.383,0.00015378,2]
[339826786,1728046232178,-579.8,0.00015378,2]
[339826787,1728046232188,-316.299,0.00015992,2]
[339826788,1728046232197,-1479.0,0.00016,2]
[339826789,1728046232206,-167.27,0.00016983,2]
[339826790,1728046232216,-350.0,0.00017,2]
[339826791,1728046232226,-190.91,0.00017685,2]
[339826792,1728046232236,-155.29,0.000178,7]
[339826793,1728046232245,-354.94,0.00018163,2]
[339826794,1728046232255,-2751.0,0.00018786,2]
[339826795,1728046232264,-500.0,0.00018802,2]
[339826796,1728046232273,-200.0,0.0001881,2]
[339826797,1728046232283,-250.0,0.0001883,2]
[339826798,1728046232292,-400.0,0.00019,2]
[339826799,1728046232301,-1000.0,0.00019188,2]
[339826800,1728046232310,-257.0,0.00019201,2]
[339826801,1728046232320,-167.27,0.0001941,2]
[339826802,1728046232329,-150.0,0.00019655,2]
[339826803,1728046232338,-168.37,0.0001968,2]
[339826804,1728046232348,-2000.0,0.00020027,2]
[339826805,1728046232358,-300.0,0.00020092,2]
[339826806,1728046232368,-150.0,0.0002018,2]
[339826807,1728046232377,-657.79039193,0.00020274,120]
[339826808,1728046232387,-354.94,0.00020427,2]
[339826809,1728046232400,-180.0,0.00020645,2]
[339826810,1728046232409,-150.0,0.00020705,2]
[339826811,1728046232419,-450.0,0.00021,2]
[339826812,1728046232427,-150.0,0.0002123,2]
[339826813,1728046232436,-178.37,0.0002128,2]
[339826814,1728046232446,-174.21,0.00021421,2]
[339826815,1728046232455,-300.0,0.00021462,2]
[339826816,1728046232465,-1000.0,0.00021587,2]
[339826817,1728046232474,-150.0,0.00021755,2]
[339826818,1728046232483,-167.27,0.00021836,2]
[339826819,1728046232493,-421.31562147,0.00021847,2]
[339826820,1728046232502,-182.12491614,0.000219,2]
[339826821,1728046232511,-250.0,0.00021917,2]
[339826822,1728046232521,-200.0,0.00021918,2]
[339826823,1728046232530,-339.4,0.00021918,2]
[339826824,1728046232539,-1254.49,0.00021918,2]
[339826825,1728046232549,-421.31562147,0.00021932,2]
[339826826,1728046232558,-20382.01887515,0.0002199,3]
[339826829,1728046237900,-328.53229629,0.0002199,3]
[339826830,1728046237970,-793.48923202,0.0002199,3]
[339826831,1728046237982,-14461.16019484,0.0002199,3]
[339826832,1728046237991,-37038.83980516,0.00022,30]
[339826833,1728046238061,-530.4,0.00022,30]
[339826834,1728046238072,-20036.96197052,0.00022,30]
[339826835,1728046238119,-2038.73363191,0.00022,30]
[339826836,1728046238130,-19095.22893999,0.00022,30]
[339826912,1728046239893,-3884.44144592,0.00022,30]
[339826913,1728046239949,-730.07124766,0.00022,30]
[339826914,1728046240057,-2175.54992252,0.00022,30]
[339826915,1728046240069,-332.54659203,0.00022,30]
[339826916,1728046240082,-730.32064217,0.00022,30]
[339826917,1728046240096,-395.48039178,0.00022,30]
[339826918,1728046240115,-1247.19195163,0.00022,30]
[339826919,1728046240192,-547.52749393,0.00022,30]
[339826920,1728046240213,-5114.1745002,0.00022,30]
[339826976,1728046242936,-134105.07773327,0.00022,30]
[339826980,1728046242995,-118907.31373131,0.00022,30]
[339826982,1728046243004,-1905.36037482,0.00022,30]
[339826984,1728046243014,-4114.78226329,0.0002218,2]
[339826986,1728046243024,-150.0,0.0002228,2]
[339826988,1728046243033,-1000.0,0.00022466,2]
[339826989,1728046243043,-8991.30014958,0.00022681,3]
[339826990,1728046243052,-354.94,0.00022691,2]
[339826991,1728046243062,-150.0,0.00022805,2]
[339826992,1728046243072,-168.37,0.00022928,2]
[339826993,1728046243082,-150.0,0.00023,120]
[339826994,1728046243092,-500.0,0.00023,2]
[339826995,1728046243102,-150.0,0.00023331,2]
[339826996,1728046243112,-421.31562147,0.00023496,2]
[339826997,1728046243121,-421.31562147,0.00023609,2]
[339826998,1728046243131,-150.0,0.00023856,2]
[339826999,1728046243141,-1000.0,0.00023985,2]
[339827000,1728046243152,-421.31562147,0.00024059,2]
[339827001,1728046243162,-421.31562147,0.0002411,2]
[339827002,1728046243171,-4114.78226322,0.00024138,2]
[339827003,1728046243180,-150.0,0.00024381,2]
[339827004,1728046243190,-421.31562147,0.00024453,2]
[339827005,1728046243200,-500.0,0.00024657,2]
[339827006,1728046243210,-180.56330782,0.0002469,2]
[339827007,1728046243220,-8991.30014958,0.0002469,4]
[339827008,1728046243230,-223.70931346,0.000247,2]
[339827009,1728046243240,-217.0,0.000247,2]
[339827010,1728046243250,-248.01133231,0.000247,2]
[339827011,1728046243261,-5136.65344338,0.000247,2]
[339827012,1728046243270,-35014.14818445,0.0002478,4]
[339827013,1728046243815,-3347.92690004,0.0002478,4]
[339827014,1728046243837,-315.0,0.0002478,4]
[339827015,1728046243913,-60227.22656091,0.0002478,4]
[339827016,1728046243923,-321.25754083,0.00024782,2]
[339827017,1728046243932,-43677.59143492,0.0002479,4]
[339827022,1728046245937,-2517.954764,0.0002479,4]
[339827023,1728046245952,-514.9321986,0.0002479,4]
[339827024,1728046245964,-4476.71,0.0002479,4]
[339827025,1728046246044,-12003.20628658,0.0002479,4]
[339827115,1728047432078,-162.64,0.00010959,2]
[339827116,1728047432088,-161.38,0.00010959,2]
[339827117,1728047432098,-10.48747262,0.00013,2]
[339827118,1728047432153,-239.51252738,0.00013,2]
[339827119,1728047432164,-300.0,0.00015,2]
[339827120,1728047432173,-27.02754641,0.000161,2]
[339827121,1728047432200,-6247.97245359,0.000161,2]
[339827122,1728047432209,-350.0,0.00017,2]
[339827123,1728047432218,-938.96970918,0.000179,5]
[339827124,1728047432230,-335.92939992,0.000179,5]
[339827125,1728047432242,-348.89010204,0.000179,5]
[339827126,1728047432356,-345.5,0.000179,5]
[339827127,1728047432367,-1856.4,0.000179,5]
[339827128,1728047432380,-594.99826677,0.000179,5]
[339827129,1728047432406,-4000.0,0.000179,5]
[339827130,1728047432426,-1797.40548677,0.000179,5]
[339827131,1728047432438,-1294.90703532,0.000179,5]
[339827132,1728047432451,-400.0,0.00019,2]
[339827133,1728047432461,-4024.59768256,0.000191,2]
[339827134,1728047432477,-834.81196786,0.000191,2]
[339827148,1728047438055,-253.039,0.0002,2]
[339827149,1728047438065,-55.62966659,0.00020274,120]
[339827150,1728047438107,-444.37033341,0.00020274,120]
[339827151,1728047438117,-126.16716284,0.00020274,2]
[339827152,1728047438176,-298.25,0.00020274,2]
[339827153,1728047438222,-75.57283716,0.00020274,2]
[339827154,1728047438232,-334.73,0.00020378,2]
[339827155,1728047438243,-450.0,0.00021,2]
[339827156,1728047438252,-214.31559694,0.00021757,2]
[339827157,1728047438265,-2923.70440306,0.00021757,2]
[339827158,1728047438274,-6348.64,0.00021809,2]
[339827159,1728047438284,-5227.8,0.00021828,2]
[339827160,1728047438294,-250.0,0.00021917,2]
[339827161,1728047438304,-200.0,0.00021918,2]
[339827162,1728047438314,-200.0,0.00022186,2]
[339827163,1728047438323,-2751.0,0.00022187,2]
[339827164,1728047438333,-250.0,0.00022187,2]
[339827166,1728047438342,-150.0,0.00022218,2]
[339827168,1728047438352,-451.08,0.00022289,2]
[339827169,1728047438361,-200.0,0.00022294,2]
[339827170,1728047438371,-448.66,0.00022294,2]
[339827171,1728047438380,-150.0,0.00022315,2]
[339827172,1728047438390,-151.05,0.00022373,2]
[339827173,1728047438399,-250.0,0.00022411,2]
[339827174,1728047438409,-202.38,0.00022414,2]
[339827175,1728047438418,-4468.16,0.00022414,2]
[339827176,1728047438428,-2535.08,0.00022428,2]
[339827177,1728047438438,-159.12,0.00022487,2]
[339827178,1728047438447,-334.73,0.00022642,2]
[339827179,1728047438457,-1000.0,0.00022738,2]
[339827180,1728047438467,-1045.4,0.00022782,2]
[339827181,1728047438476,-1608.61,0.00022782,2]
[339827182,1728047438486,-2000.0,0.00022792,120]
[339827183,1728047438496,-155.61,0.00022831,2]
[339827184,1728047438505,-214.28,0.00022913,2]
[339827185,1728047438515,-500.0,0.00023,2]
[339827186,1728047438524,-200.0,0.00023,2]
[339827187,1728047438533,-17241.31962772,0.00023034,2]
[339827188,1728047438542,-1000.0,0.00023081,2]
[339827189,1728047438552,-151.05,0.00023184,2]
[339827190,1728047438561,-282.83,0.00023191,2]
[339827191,1728047438571,-421.521413,0.00023432,2]
[339827192,1728047438580,-150.0,0.00023555,4]
[339827193,1728047438590,-300.0,0.00023576,2]
[339827194,1728047438599,-754.45,0.00023801,2]
[339827195,1728047438609,-622.07,0.00023801,2]
[339827196,1728047438618,-421.521413,0.00023833,2]
[339827197,1728047438627,-754.45,0.00023841,2]
[339827198,1728047438637,-421.521413,0.0002395,2]
[339827199,1728047438646,-180.0,0.00023986,2]
[339827200,1728047438655,-151.05,0.00023995,2]
[339827201,1728047438665,-421.521413,0.00024138,2]
[339827202,1728047438675,-178.36,0.0002454,2]
[339827203,1728047438685,-421.521417,0.00024618,2]
[339827204,1728047438694,-280.66774539,0.00024657,2]
[339827205,1728047438704,-2952.9912,0.00024679,2]
[339827206,1728047438714,-217.0,0.000247,2]
[339827207,1728047438723,-292.72474284,0.000247,2]
[339827208,1728047438733,-75.43682368,0.000247,2]
[339827209,1728047438763,-222.68038688,0.000247,2]
[339827210,1728047438772,-174.06460705,0.000247,2]
[339827211,1728047438782,-1285.29778037,0.000247,2]
[339827214,1728047440062,-1645.04550836,0.000247,2]
[339827215,1728047440075,-494.09234019,0.000247,2]
[339827216,1728047440085,-866.19140533,0.00024769,5]
[339827217,1728047440224,-7201.70000002,0.00024769,5]
[339827218,1728047440281,-639.63642527,0.00024769,5]
[339827219,1728047440295,-923.43876,0.00024769,5]
[339827220,1728047440306,-7766.25509508,0.00024769,5]
[339827221,1728047440315,-500.0,0.00024773,2]
[339827222,1728047440324,-473.44858279,0.00024773,2]
[339827223,1728047440334,-25305.0497246,0.00024779,5]
[339827224,1728047440343,-63446.99518976,0.00024779,5]
[339827299,1728047443077,-8140.2985015,0.00024779,5]
[339827300,1728047443089,-1490.79089986,0.00024779,5]
[339827301,1728047443099,-772.82854254,0.00024779,5]
[339827302,1728047443111,-6655.27794624,0.00024779,5]
[339827303,1728047443122,-438.829329,0.00024779,5]
[339827304,1728047443137,-2320.0,0.00024779,5]
[339827305,1728047443148,-25415.7043971,0.00024779,5]
[339827306,1728047443157,-63397.0894703,0.0002478,5]
[339827307,1728047443167,-160.62877041,0.00024782,2]
[339827308,1728047443176,-500.0,0.00024789,2]
[339827309,1728047443194,-500.0,0.00024789,2]
[339827310,1728047443205,-500.0,0.00024789,2]
[339827311,1728047443215,-500.0,0.00024789,2]
[339827312,1728047443224,-500.0,0.00024789,2]
[339827313,1728047443233,-500.0,0.00024789,2]
[339827314,1728047443242,-500.0,0.00024789,2]
[339827315,1728047443251,-500.0,0.00024789,2]
[339827316,1728047443260,-500.0,0.00024789,2]
[339827317,1728047443270,-500.0,0.00024789,2]
[339827318,1728047443279,-500.0,0.00024789,2]
[339827319,1728047443289,-500.0,0.00024789,2]
[339827320,1728047443298,-500.0,0.00024789,2]
[339827321,1728047443307,-500.0,0.00024789,2]
[339827322,1728047443317,-500.0,0.00024789,2]
[339827323,1728047443326,-500.0,0.00024789,2]
[339827324,1728047443335,-500.0,0.00024789,2]
[339827325,1728047443344,-500.0,0.00024789,2]
[339827326,1728047443354,-500.0,0.00024789,2]
[339827328,1728047443363,-500.0,0.00024789,2]
[339827330,1728047443372,-500.0,0.00024789,2]
[339827332,1728047443381,-500.0,0.00024789,2]
[339827334,1728047443391,-500.0,0.00024789,2]
[339827336,1728047443400,-500.0,0.00024789,2]
[339827338,1728047443409,-500.0,0.00024789,2]
[339827340,1728047443417,-500.0,0.00024789,2]
[339827342,1728047443429,-500.0,0.00024789,2]
[339827343,1728047443438,-500.0,0.00024789,2]
[339827345,1728047443447,-500.0,0.00024789,2]
[339827347,1728047443456,-500.0,0.00024789,2]
[339827349,1728047443465,-500.0,0.00024789,2]
[339827351,1728047443475,-500.0,0.00024789,2]
[339827353,1728047443484,-500.0,0.00024789,2]
[339827355,1728047443493,-500.0,0.00024789,2]
[339827359,1728047443721,-500.0,0.00024789,2]
[339827360,1728047443731,-500.0,0.00024789,2]
[339827361,1728047443741,-500.0,0.00024789,2]
[339827362,1728047443751,-500.0,0.00024789,2]
[339827363,1728047443760,-500.0,0.00024789,2]
[339827364,1728047443769,-500.0,0.00024789,2]
[339827365,1728047443779,-500.0,0.00024789,2]
[339827366,1728047443788,-500.0,0.00024789,2]
[339827367,1728047443797,-500.0,0.00024789,2]
[339827368,1728047443807,-500.0,0.00024789,2]
[339827369,1728047443816,-500.0,0.00024789,2]
[339827370,1728047443825,-500.0,0.00024789,2]
[339827371,1728047443834,-500.0,0.00024789,2]
[339827372,1728047443843,-500.0,0.00024789,2]
[339827373,1728047443852,-500.0,0.00024789,2]
[339827374,1728047443861,-500.0,0.00024789,2]
[339827375,1728047443870,-500.0,0.00024789,2]
[339827376,1728047443879,-500.0,0.00024789,2]
[339827377,1728047443888,-500.0,0.00024789,2]
[339827378,1728047443898,-500.0,0.00024789,2]
[339827379,1728047443907,-500.0,0.00024789,2]
[339827380,1728047443915,-500.0,0.00024789,2]
[339827381,1728047443924,-500.0,0.00024789,2]
[339827382,1728047443933,-500.0,0.00024789,2]
[339827383,1728047443942,-500.0,0.00024789,2]
[339827384,1728047443951,-500.0,0.00024789,2]
[339827385,1728047443960,-500.0,0.00024789,2]
[339827386,1728047443969,-500.0,0.00024789,2]
[339827387,1728047443979,-500.0,0.00024789,2]
[339827388,1728047443987,-500.0,0.00024789,2]
[339827389,1728047443996,-500.0,0.00024789,2]
[339827390,1728047444006,-500.0,0.00024789,2]
[339827391,1728047444016,-500.0,0.00024789,2]
[339827392,1728047444026,-500.0,0.00024789,2]
[339827393,1728047444035,-500.0,0.00024789,2]
[339827394,1728047444045,-500.0,0.00024789,2]
[339827395,1728047444054,-500.0,0.00024789,2]
[339827396,1728047444063,-500.0,0.00024789,2]
[339827397,1728047444072,-500.0,0.00024789,2]
[339827398,1728047444081,-500.0,0.00024789,2]
[339827399,1728047444090,-500.0,0.00024789,2]
[339827400,1728047444099,-500.0,0.00024789,2]
[339827401,1728047444107,-500.0,0.00024789,2]
[339827402,1728047444117,-500.0,0.00024789,2]
[339827403,1728047444127,-500.0,0.00024789,2]
[339827404,1728047444135,-500.0,0.00024789,2]
[339827405,1728047444144,-500.0,0.00024789,2]
[339827406,1728047444154,-500.0,0.00024789,2]
[339827407,1728047444163,-500.0,0.00024789,2]
[339827408,1728047444172,-500.0,0.00024789,2]
[339827409,1728047444184,-500.0,0.00024789,2]
[339827410,1728047444195,-500.0,0.00024789,2]
[339827411,1728047444210,-500.0,0.00024789,2]
[339827412,1728047444218,-500.0,0.00024789,2]
[339827413,1728047444227,-500.0,0.00024789,2]
[339827414,1728047444237,-500.0,0.00024789,2]
[339827415,1728047444246,-500.0,0.00024789,2]
[339827416,1728047444256,-500.0,0.00024789,2]
[339827417,1728047444266,-500.0,0.00024789,2]
[339827418,1728047444278,-500.0,0.00024789,2]
[339827419,1728047444287,-500.0,0.00024789,2]
[339827420,1728047444296,-500.0,0.00024789,2]
[339827421,1728047444306,-500.0,0.00024789,2]
[339827422,1728047444316,-500.0,0.00024789,2]
[339827423,1728047444325,-500.0,0.00024789,2]
[339827424,1728047444335,-500.0,0.00024789,2]
[339827425,1728047444344,-500.0,0.00024789,2]
[339827426,1728047444354,-500.0,0.00024789,2]
[339827427,1728047444363,-500.0,0.00024789,2]
[339827428,1728047444373,-500.0,0.00024789,2]
[339827429,1728047444382,-500.0,0.00024789,2]
[339827430,1728047444391,-500.0,0.00024789,2]
[339827431,1728047444401,-500.0,0.00024789,2]
[339827432,1728047444410,-500.0,0.00024789,2]
[339827433,1728047444419,-500.0,0.00024789,2]
[339827434,1728047444431,-500.0,0.00024789,2]
[339827435,1728047444440,-500.0,0.00024789,2]
[339827436,1728047444449,-500.0,0.00024789,2]
[339827437,1728047444458,-500.0,0.00024789,2]
[339827438,1728047444468,-500.0,0.00024789,2]
[339827439,1728047444478,-500.0,0.00024789,2]
[339827440,1728047444487,-500.0,0.00024789,2]
[339827441,1728047444497,-500.0,0.00024789,2]
[339827442,1728047444506,-500.0,0.00024789,2]
[339827443,1728047444516,-500.0,0.00024789,2]
[339827444,1728047444525,-500.0,0.00024789,2]
[339827445,1728047444535,-500.0,0.00024789,2]
[339827446,1728047444544,-500.0,0.00024789,2]
[339827447,1728047444553,-500.0,0.0002479,2]
[339827448,1728047444562,-500.0,0.0002479,2]
[339827449,1728047444571,-500.0,0.0002479,2]
[339827450,1728047444580,-500.0,0.0002479,2]
[339827451,1728047444589,-500.0,0.0002479,2]
[339827452,1728047444599,-500.0,0.0002479,2]
[339827453,1728047444608,-500.0,0.0002479,2]
[339827454,1728047444617,-500.0,0.0002479,2]
[339827455,1728047444627,-500.0,0.0002479,2]
[339827456,1728047444637,-500.0,0.0002479,2]
[339827457,1728047444646,-500.0,0.0002479,2]
[339827458,1728047444655,-500.0,0.0002479,2]
[339827459,1728047444665,-500.0,0.0002479,2]
[339827460,1728047444674,-500.0,0.0002479,2]
[339827461,1728047444688,-500.0,0.0002479,2]
[339827462,1728047444698,-500.0,0.0002479,2]
[339827463,1728047444707,-500.0,0.0002479,2]
[339827464,1728047444717,-500.0,0.0002479,2]
[339827465,1728047444726,-500.0,0.0002479,2]
[339827466,1728047444735,-500.0,0.0002479,2]
[339827467,1728047444744,-500.0,0.0002479,2]
[339827468,1728047444754,-500.0,0.0002479,2]
[339827469,1728047444763,-500.0,0.0002479,2]
[339827470,1728047444772,-500.0,0.0002479,2]
[339827471,1728047444782,-500.0,0.0002479,2]
[339827472,1728047444791,-500.0,0.0002479,2]
[339827473,1728047444801,-500.0,0.0002479,2]
[339827474,1728047444810,-500.0,0.0002479,2]
[339827475,1728047444819,-500.0,0.0002479,2]
[339827476,1728047444829,-500.0,0.0002479,2]
[339827477,1728047444839,-500.0,0.0002479,2]
[339827478,1728047444848,-500.0,0.0002479,2]
[339827479,1728047444857,-500.0,0.0002479,2]
[339827480,1728047444867,-500.0,0.0002479,2]
[339827481,1728047444876,-500.0,0.0002479,2]
[339827482,1728047444885,-500.0,0.0002479,2]
[339827483,1728047444894,-500.0,0.0002479,2]
[339827484,1728047444903,-500.0,0.0002479,2]